lending/lending_fUSD_20250808
["ID","MTS","AMOUNT","RATE_DAILY","PERIOD"]
[377933745,1754614281022,-229.0,0.00038,30]
[377933746,1754614281035,-339.0,0.00038,30]
[377933747,1754614281045,-66665.36,0.00038,14]
[377933748,1754614281055,-2736.14,0.00038,30]
[377933749,1754614281065,-842.27441137,0.00038,30]
[377933750,1754614281075,-500.0,0.00038,5]
[377933751,1754614281085,-457.55740054,0.00038,30]
[377933752,1754614281095,-354.26,0.00038005,60]
[377933753,1754614281105,-3517.2959505,0.00038056,10]
[377933754,1754614281115,-152.81,0.00038066,60]
[377933755,1754614281125,-400.0,0.00038095,2]
[377933756,1754614281135,-2516.92,0.00038136,30]
[377933757,1754614281144,-2516.92,0.00038136,30]
[377933758,1754614281155,-152.83335163,0.00038166,60]
[377933759,1754614281167,-300.0,0.000382,16]
[377933760,1754614281177,-1000.0,0.00038219,30]
[377933761,1754614281187,-1000.0,0.00038219,30]
[377933762,1754614281197,-444.56347485,0.00038219,30]
[377933763,1754614281211,-234.54,0.00038248,3]
[377933764,1754614281221,-300.0,0.000383,16]
[377933765,1754614281231,-3509.23,0.000383,7]
[377933766,1754614281241,-4687.97,0.000383,7]
[377933767,1754614281251,-1177.34,0.000383,7]
[377933768,1754614281261,-4211.54,0.000383,7]
[377933769,1754614281271,-17573.5,0.000383,7]
[377933770,1754614281283,-223.86,0.000383,7]
[377933771,1754614281294,-12221.68,0.000383,7]
[377933772,1754614281304,-273.08,0.000383,7]
[377933773,1754614281315,-150.0,0.0003832,2]
[377933774,1754614281325,-400.0,0.00038356,2]
[377933775,1754614281336,-150.0,0.00038356,12]
[377933776,1754614281348,-1690.96,0.00038356,120]
[377933777,1754614281358,-250.0,0.00038356,5]
[377933778,1754614281369,-400.0,0.00038369,2]
[377933779,1754614281380,-75879.31353993,0.00038379,120]
[377933780,1754614281390,-1000.0,0.00038399,2]
[377933781,1754614281401,-3509.23,0.000384,7]
[377933782,1754614281411,-4687.97,0.000384,7]
[377933783,1754614281422,-1177.34,0.000384,7]
[377933784,1754614281432,-4211.54,0.000384,7]
[377933785,1754614281443,-17573.5,0.000384,7]
[377933786,1754614281454,-223.86,0.000384,7]
[377933787,1754614281464,-2516.92,0.0003841,30]
[377933788,1754614281474,-2516.92,0.0003841,30]
[377933789,1754614281484,-150.0,0.00038451,120]
[377933790,1754614281495,-163.16540746,0.000385,120]
[377933791,1754614281506,-238.0,0.000385,14]
[377933792,1754614281516,-2126.44910878,0.000385,120]
[377933793,1754614281527,-30486.03,0.000385,2]
[377933794,1754614281538,-354.26,0.00038537,60]
[377933795,1754614281548,-166.75988,0.0003857,2]
[377933796,1754614281559,-4958.45,0.000386,14]
[377933797,1754614281569,-8833.07030552,0.0003861,2]
[377933798,1754614281579,-402.09610673,0.0003863,2]
[377933799,1754614281589,-216.15,0.00038643,2]
[377933800,1754614281600,-150.0,0.00038683,120]
[377933801,1754614281610,-2516.92,0.00038684,30]
[377933802,1754614281620,-2516.92,0.00038684,30]
[377933803,1754614281630,-2000.0,0.00038748,31]
[377933804,1754614281641,-969.29009955,0.000388,120]
[377933805,1754614281652,-302.27866894,0.0003889,120]
[377933806,1754614281663,-176.66682683,0.000389,2]
[377933807,1754614281673,-2101.59658254,0.000389,120]
[377933808,1754614281683,-66665.36,0.000389,14]
[377933809,1754614281693,-2736.14,0.000389,30]
[377933810,1754614281703,-500.0,0.000389,14]
[377933811,1754614281713,-1534.96,0.00038904,120]
[377933812,1754614281723,-2516.92,0.00038958,30]
[377933813,1754614281734,-2516.92,0.00038958,30]
[377933814,1754614281744,-168.8831922,0.00038969,2]
[377933815,1754614281754,-3135.08060698,0.00038969,2]
[377933816,1754614281764,-4000.0,0.00038982,8]
[377933817,1754614281774,-500.0,0.0003899,120]
[377933818,1754614281790,-207899.95325436,0.00039,2]
[377933819,1754614281800,-21418.66597577,0.00039,2]
[377933820,1754614281810,-415.6,0.00039,30]
[377933821,1754614281820,-1479.8111789,0.00039,120]
[377933822,1754614281830,-3013.82501352,0.00039,30]
[377933823,1754614281840,-273.694306,0.00039,31]
[377933824,1754614281851,-322.86,0.00039,2]
[377933825,1754614281861,-216034.24613419,0.00039,30]
[377933826,1754614281871,-842.27441137,0.00039,30]
[377933827,1754614281881,-354.26,0.00039069,60]
[377933828,1754614281891,-1976.64130192,0.00039069,7]
[377933829,1754614281901,-6009.5,0.00039069,30]
[377933830,1754614281910,-1000.0,0.00039069,30]
[377933831,1754614281920,-15312.05955819,0.00039069,120]
[377933832,1754614281930,-3764.50889861,0.00039069,120]
[377933833,1754614281941,-201367.49915122,0.00039069,120]
[377933834,1754614281954,-2008.82578743,0.00039069,5]
[377933835,1754614281963,-298895.62364783,0.00039069,120]
[377933836,1754614281973,-988.44434408,0.00039069,5]
[377933837,1754614281983,-599.12383119,0.00039069,5]
[377933838,1754614281993,-3311.02862852,0.00039069,5]
[377933839,1754614282002,-19172.28792235,0.00039069,5]
[377933840,1754614282013,-221.21571626,0.00039069,5]
[377933841,1754614282023,-151.17070628,0.00039069,2]
[377933842,1754614282038,-36182.17015005,0.00039069,2]
[377933843,1754614282049,-15239.78103732,0.00039069,2]
[377933844,1754614282224,-953.82884201,0.00039069,2]
[377933845,1754614282237,-1005.81820353,0.00039069,2]
[377933846,1754614282249,-95703.07072426,0.00039069,2]
[377933847,1754614282259,-10351.92927574,0.00039069,2]
[377933848,1754614282271,-11824.4045435,0.00039069,2]
[377933849,1754614282389,-400.0,0.00019451,2]
[377933850,1754614282399,-433.79,0.00019451,2]
[377933851,1754614282409,-400.0,0.00019451,2]
[377933852,1754614282419,-433.79,0.00019725,2]
[377933853,1754614282430,-433.79,0.00019999,2]
[377933854,1754614282440,-433.79,0.00020273,2]
[377933855,1754614282450,-433.79,0.00020547,2]
[377933856,1754614282461,-433.79,0.00020821,2]
[377933857,1754614282471,-666.42995204,0.00025753,2]
[377933858,1754614282481,-54052.12889257,0.00039069,2]
[377933859,1754614282497,-433.79,0.00021095,2]
[377933860,1754614282507,-8584.87,0.00039069,2]
[377933861,1754614282519,-1849.99,0.00039069,2]
[377933862,1754614282658,-508.96,0.00019451,2]
[377933863,1754614282669,-211.58213282,0.000248,3]
[377933864,1754614282679,-211.58213282,0.000261,7]
[377933865,1754614282689,-236.17,0.00034729,30]
[377933866,1754614282700,-236.17,0.00035272,60]
[377933867,1754614282710,-60.60226571,0.00035814,60]
[377933868,1754614282722,-175.56773429,0.00035814,60]
[377933869,1754614282733,-220.45674771,0.00036356,60]
[377933870,1754614282745,-15.71325229,0.00036356,60]
[377933871,1754614282755,-538.02318139,0.00039069,2]
[377933872,1754614282767,-8581.4839895,0.00039069,2]
[377933873,1754614282779,-78420.62847057,0.00039069,2]
[377933878,1754614326311,529.62,0.00030081,120]
[377933885,1754614349142,264.64,0.00013699,2]
[377933891,1754614417737,163.93,0.00025765,120]
[377933892,1754614418154,163.93,0.00028985,120]
[377933897,1754614695325,173.68,0.00015068,2]
[377933898,1754614880751,-152.63,0.0001843,2]
[377933899,1754614884542,-241.04150545,0.0001843,2]
[377933900,1754614893168,-24.72621352,0.0001843,2]
[377933901,1754614893197,-224.9296193,0.00018512,4]
[377933902,1754614898308,-209.45463102,0.00018512,4]
[377933903,1754614901474,-151.0,0.00018512,4]
[377933904,1754614907488,-224.82147692,0.00018512,4]
[377933905,1754614913884,-189.79427276,0.00018512,4]
[377933906,1754614913911,-160.58741034,0.0001863,2]
[377933913,1754614964764,-268.94134236,0.00018492,2]
[377933914,1754614992110,-273.93912687,0.00018492,2]
[377933916,1754615045183,-188.34,0.00018385,2]
[377933917,1754615045215,-156.37247946,0.00018439,4]
[377933918,1754615052495,-179.44114783,0.00018392,2]
[377933919,1754615075127,-278.09220982,0.00018339,2]
[377933920,1754615106207,-384.03139387,0.00018339,2]
[377933922,1754615132634,-210.16818856,0.00018339,2]
[377933923,1754615210815,-163.81286783,0.00018243,2]
[377933924,1754615210840,-136.18713217,0.00018348,2]
[377933925,1754615217131,-403.45446321,0.00018352,2]
[377933926,1754615217158,-843.62752054,0.00018439,4]
[377933927,1754615217186,-666.0,0.00018443,3]
[377933928,1754615217212,-175.0,0.00018452,7]
[377933929,1754615217238,-242.21724458,0.00018492,2]
[377933930,1754615217268,-250.0,0.0001853,2]
[377933931,1754615217294,-1000.0,0.00018556,4]
[377933932,1754615217320,-1347.37777929,0.00018618,2]
[377933933,1754615270387,-228.85023818,0.0001853,2]
[377933934,1754615295348,-221.78025622,0.0001853,2]
[377933937,1754615414460,192.01,0.00027678,120]
[377933950,1754615432968,-153.75,0.0001826,2]
[377933951,1754615432979,-192.01,0.00018452,2]
[377933952,1754615432990,-1000.0,0.00018574,4]
[377933953,1754615433002,-1927.37222071,0.00018618,2]
[377933954,1754615433014,-314.06258966,0.0001863,2]
[377933955,1754615433025,-1000.0,0.0001872,4]
[377933956,1754615433036,-200.0,0.00018767,2]
[377933957,1754615433047,-1593.09,0.00019054,2]
[377933958,1754615433059,-300.0,0.00019103,2]
[377933959,1754615433071,-250.0,0.00019103,2]
[377933960,1754615433082,-300.0,0.00019103,2]
[377933961,1754615433095,-1200.0,0.00019103,2]
[377933962,1754615433107,-1000.0,0.00019104,2]
[377933963,1754615433119,-504.59,0.00019104,2]
[377933964,1754615433130,-200.0,0.00019104,2]
[377933965,1754615433141,-197.49,0.00019104,2]
[377933966,1754615433160,-197.49,0.00019114,2]
[377933967,1754615433171,-197.49,0.00019124,2]
[377933968,1754615433183,-197.49,0.00019134,2]
[377933969,1754615433195,-197.49,0.00019144,2]
[377933970,1754615433207,-197.49,0.00019154,2]
[377933971,1754615433218,-197.49,0.00019164,2]
[377933972,1754615433230,-153.75,0.00019173,2]
[377933973,1754615433243,-197.49,0.00019174,2]
[377933974,1754615433255,-166.958529,0.00019178,2]
[377933975,1754615433267,-197.49,0.00019184,2]
[377933976,1754615433279,-197.49,0.00019194,2]
[377933977,1754615433291,-820.24,0.000192,2]
[377933978,1754615433302,-568.0,0.000192,2]
[377933979,1754615433314,-197.49,0.00019204,2]
[377933980,1754615433326,-197.49,0.00019214,2]
[377933981,1754615433337,-197.49,0.00019224,2]
[377933982,1754615433349,-197.49,0.00019234,2]
[377933983,1754615433359,-197.49,0.00019244,2]
[377933984,1754615433372,-197.49,0.00019254,2]
[377933985,1754615433383,-197.49,0.00019264,2]
[377933986,1754615433394,-197.49,0.00019274,2]
[377933987,1754615433410,-197.49,0.00019285,2]
[377933988,1754615433427,-197.49,0.00019295,2]
[377933989,1754615433438,-188.34,0.00019304,2]
[377933990,1754615433451,-163.93,0.00019324,2]
[377933991,1754615433462,-228.8503,0.00019341,2]
[377933992,1754615433475,-7109.70766743,0.00019342,2]
[377933993,1754615433512,-1115.42734282,0.00019342,2]
[377933994,1754615433548,-532.62,0.00019342,2]
[377933995,1754615433786,-16017.46707333,0.00019342,2]
[377933996,1754615433800,-4699.49123728,0.00019342,2]
[377933997,1754615433912,-11924.17784517,0.00019342,2]
[377934017,1754615439664,251.4,0.00013699,2]
[377934060,1754615441803,-738.22,0.000192,2]
[377934063,1754615441814,-16620.13166061,0.00019342,2]
[377934091,1754615442144,-1000.0,0.00019351,2]
[377934092,1754615442160,-23284.3993,0.00019351,2]
[377934093,1754615442172,-511.5241,0.00019351,2]
[377934094,1754615442183,-1000.0,0.00019351,2]
[377934095,1754615442195,-571.15902934,0.00019351,2]
[377934096,1754615442206,-24440.74531028,0.00019351,2]
[377934097,1754615442218,-11085.8533,0.00019352,2]
[377934099,1754615442230,-500.0,0.00019373,2]
[377934102,1754615442243,-500.0,0.00019373,2]
[377934104,1754615442255,-500.0,0.00019373,2]
[377934105,1754615442266,-500.0,0.00019373,2]
[377934106,1754615442279,-500.0,0.00019373,2]
[377934107,1754615442301,-305.7091,0.00019425,2]
[377934108,1754615442316,-937.61,0.00019441,2]
[377934110,1754615442328,-500.0,0.0001945,2]
[377934112,1754615442339,-500.0,0.0001945,2]
[377934114,1754615442351,-440.29196785,0.0001945,2]
[377934115,1754615442363,-500.0,0.0001945,2]
[377934117,1754615442376,-500.0,0.0001945,2]
[377934119,1754615442392,-500.0,0.0001945,2]
[377934122,1754615442407,-500.0,0.0001945,2]
[377934123,1754615442419,-500.0,0.0001945,2]
[377934125,1754615442435,-500.0,0.0001945,2]
[377934127,1754615442447,-500.0,0.0001945,2]
[377934129,1754615442459,-500.0,0.0001945,2]
[377934131,1754615442471,-500.0,0.0001945,2]
[377934133,1754615442483,-500.0,0.0001945,2]
[377934135,1754615442496,-500.0,0.0001945,2]
[377934137,1754615442512,-500.0,0.0001945,2]
[377934140,1754615442523,-500.0,0.0001945,2]
[377934142,1754615442534,-500.0,0.0001945,2]
[377934144,1754615442546,-500.0,0.0001945,2]
[377934146,1754615442559,-387.13236013,0.0001945,2]
[377934148,1754615442570,-500.0,0.0001945,2]
[377934150,1754615442580,-500.0,0.0001945,2]
[377934152,1754615442592,-500.0,0.0001945,2]
[377934154,1754615442603,-500.0,0.0001945,2]
[377934155,1754615442613,-500.0,0.0001945,2]
[377934158,1754615442624,-500.0,0.0001945,2]
[377934160,1754615442635,-500.0,0.0001945,2]
[377934162,1754615442647,-500.0,0.0001945,2]
[377934164,1754615442662,-351.39,0.0001945,2]
[377934166,1754615442674,-400.0,0.0001945,2]
[377934168,1754615442685,-400.0,0.0001945,2]
[377934169,1754615442695,-400.0,0.0001945,2]
[377934172,1754615442707,-400.0,0.0001945,2]
[377934174,1754615442719,-407.25,0.0001945,2]
[377934176,1754615442729,-559.67,0.0001945,2]
[377934178,1754615442740,-300.0,0.0001945,2]
[377934180,1754615442751,-400.0,0.0001945,2]
[377934181,1754615442762,-400.0,0.0001945,2]
[377934183,1754615442772,-400.0,0.0001945,2]
[377934185,1754615442783,-401.07858973,0.0001945,2]
[377934187,1754615442794,-400.0,0.0001945,2]
[377934189,1754615442807,-400.0,0.0001945,2]
[377934191,1754615442818,-400.0,0.0001945,2]
[377934193,1754615442829,-400.0,0.0001945,2]
[377934195,1754615442840,-400.0,0.0001945,2]
[377934197,1754615442852,-400.0,0.0001945,2]
[377934199,1754615442863,-400.0,0.0001945,2]
[377934201,1754615442874,-400.0,0.0001945,2]
[377934203,1754615442885,-400.0,0.0001945,2]
[377934205,1754615442896,-400.0,0.0001945,2]
[377934207,1754615442917,-400.0,0.0001945,2]
[377934209,1754615442928,-400.0,0.0001945,2]
[377934211,1754615442939,-423.13,0.0001945,2]
[377934213,1754615442950,-400.0,0.0001945,2]
[377934215,1754615442961,-400.0,0.0001945,2]
[377934217,1754615442973,-415.72,0.0001945,2]
[377934219,1754615442984,-400.0,0.00019451,2]
[377934221,1754615442995,-400.0,0.00019451,2]
[377934223,1754615443005,-400.0,0.00019451,2]
[377934225,1754615443016,-400.0,0.00019451,2]
[377934227,1754615443027,-400.0,0.00019451,2]
[377934229,1754615443039,-400.0,0.00019451,2]
[377934232,1754615443051,-400.0,0.00019451,2]
[377934234,1754615443062,-400.0,0.00019451,2]
[377934236,1754615443073,-400.0,0.00019451,2]
[377934238,1754615443084,-400.0,0.00019451,2]
[377934240,1754615443096,-400.0,0.00019451,2]
[377934244,1754615443107,-400.0,0.00019451,2]
[377934247,1754615443121,-400.0,0.00019451,2]
[377934249,1754615443133,-400.0,0.00019451,2]
[377934252,1754615443146,-400.0,0.00019451,2]
[377934253,1754615443163,-400.0,0.00019451,2]
[377934254,1754615443173,-401.17855371,0.00019451,2]
[377934256,1754615443185,-528.61,0.00019451,2]
[377934257,1754615443196,-400.0,0.00019451,2]
[377934261,1754615443207,-400.0,0.00019451,2]
[377934264,1754615443223,-400.0,0.00019451,2]
[377934267,1754615443234,-400.0,0.00019451,2]
[377934270,1754615443246,-400.0,0.00019451,2]
[377934272,1754615443257,-400.0,0.00019451,2]
[377934274,1754615443268,-400.0,0.00019451,2]
[377934276,1754615443279,-400.0,0.00019451,2]
[377934279,1754615443290,-400.0,0.00019451,2]
[377934282,1754615443302,-400.0,0.00019451,2]
[377934287,1754615443312,-400.0,0.00019451,2]
[377934292,1754615443325,-400.0,0.00019451,2]
[377934296,1754615443337,-400.0,0.00019451,2]
[377934301,1754615443348,-400.0,0.00019451,2]
[377934307,1754615443360,-400.0,0.00019451,2]
[377934311,1754615443372,-400.0,0.00019451,2]
[377934316,1754615443384,-400.0,0.00019451,2]
[377934321,1754615443395,-400.0,0.00019451,2]
[377934325,1754615443411,-448.13,0.00019451,2]
[377934327,1754615443423,-511.05,0.00019451,2]
[377934331,1754615443437,-400.0,0.00019451,2]
[377934335,1754615443448,-500.0,0.00019451,2]
[377934338,1754615443459,-400.0,0.00019451,2]
[377934344,1754615443470,-400.0,0.00019451,2]
[377934349,1754615443481,-400.0,0.00019451,2]
[377934353,1754615443493,-400.0,0.00019451,2]
[377934358,1754615443507,-400.0,0.00019451,2]
[377934362,1754615443519,-403.75839563,0.00019451,2]
[377934367,1754615443539,-400.0,0.00019451,2]
[377934371,1754615443552,-400.0,0.00019451,2]
[377934374,1754615443564,-400.0,0.00019451,2]
[377934378,1754615443575,-400.0,0.00019451,2]
[377934383,1754615443587,-400.0,0.00019451,2]
[377934388,1754615443600,-400.0,0.00019451,2]
[377934392,1754615443613,-400.0,0.00019451,2]
[377934397,1754615443625,-400.0,0.00019451,2]
[377934400,1754615443642,-500.0,0.00019451,2]
[377934404,1754615443659,-457.19,0.00019451,2]
[377934409,1754615443671,-400.0,0.00019451,2]
[377934417,1754615443683,-400.0,0.00019451,2]
[377934419,1754615443695,-400.0,0.00019451,2]
[377934422,1754615443706,-400.0,0.00019451,2]
[377934425,1754615443718,-400.0,0.00019451,2]
[377934428,1754615443732,-400.0,0.00019451,2]
[377934433,1754615443748,-400.0,0.00019451,2]
[377934436,1754615443759,-300.0,0.00019451,2]
[377934440,1754615443771,-400.0,0.00019451,2]
[377934444,1754615443782,-400.0,0.00019451,2]
[377934448,1754615443794,-400.0,0.00019451,2]
[377934453,1754615443806,-400.0,0.00019451,2]
[377934457,1754615443817,-400.0,0.00019451,2]
[377934461,1754615443830,-400.0,0.00019451,2]
[377934465,1754615443843,-400.0,0.00019451,2]
[377934468,1754615443854,-400.0,0.00019451,2]
[377934472,1754615443865,-400.0,0.00019451,2]
[377934476,1754615443877,-400.0,0.00019451,2]
[377934477,1754615443888,-400.0,0.00019451,2]
[377934480,1754615443900,-400.0,0.00019451,2]
[377934482,1754615443916,-400.0,0.00019451,2]
[377934485,1754615443927,-400.0,0.00019451,2]
[377934488,1754615443938,-400.0,0.00019451,2]
[377934491,1754615443949,-400.0,0.00019451,2]
[377934495,1754615443963,-400.0,0.00019451,2]
[377934498,1754615443974,-400.0,0.00019451,2]
[377934500,1754615443985,-400.0,0.00019451,2]
[377934503,1754615443996,-400.0,0.00019451,2]
[377934506,1754615444007,-400.0,0.00019451,2]
[377934509,1754615444019,-287.07841929,0.00019451,2]
[377934512,1754615444030,-400.0,0.00019451,2]
[377934515,1754615444043,-400.0,0.00019451,2]
[377934518,1754615444053,-400.0,0.00019451,2]
[377934520,1754615444065,-297.0,0.00019451,2]
[377934523,1754615444077,-400.0,0.00019451,2]
[377934526,1754615444088,-400.0,0.00019451,2]
[377934529,1754615444100,-400.0,0.00019451,2]
[377934532,1754615444111,-400.0,0.00019451,2]
[377934535,1754615444121,-400.0,0.00019451,2]
[377934537,1754615444132,-400.0,0.00019451,2]
[377934541,1754615444143,-400.0,0.00019451,2]
[377934545,1754615444156,-400.0,0.00019451,2]
[377934549,1754615444175,-400.0,0.00019451,2]
[377934552,1754615444186,-400.0,0.00019451,2]
[377934556,1754615444198,-526.38,0.00019451,2]
[377934560,1754615444209,-400.0,0.00019451,2]
[377934562,1754615444220,-400.0,0.00019451,2]
[377934565,1754615444231,-400.0,0.00019451,2]
[377934568,1754615444242,-400.0,0.00019451,2]
[377934572,1754615444254,-400.0,0.00019451,2]
[377934575,1754615444266,-400.0,0.00019451,2]
[377934577,1754615444279,-400.0,0.00019451,2]
[377934581,1754615444290,-400.0,0.00019451,2]
[377934584,1754615444301,-400.0,0.00019451,2]
[377934587,1754615444312,-400.0,0.00019451,2]
[377934590,1754615444323,-400.0,0.00019451,2]
[377934592,1754615444333,-400.0,0.00019451,2]
[377934594,1754615444344,-400.0,0.00019451,2]
[377934596,1754615444355,-400.0,0.00019451,2]
[377934598,1754615444366,-400.0,0.00019451,2]
[377934599,1754615444379,-400.0,0.00019451,2]
[377934602,1754615444391,-500.0,0.00019451,2]
[377934604,1754615444404,-400.0,0.00019451,2]
[377934605,1754615444417,-498.19,0.00019451,2]
[377934607,1754615444429,-400.0,0.00019451,2]
[377934609,1754615444440,-400.0,0.00019451,2]
[377934612,1754615444451,-400.0,0.00019451,2]
[377934614,1754615444462,-400.0,0.00019451,2]
[377934616,1754615444473,-400.0,0.00019451,2]
[377934618,1754615444485,-400.0,0.00019451,2]
[377934620,1754615444496,-400.0,0.00019451,2]
[377934622,1754615444512,-400.0,0.00019451,2]
[377934623,1754615444523,-400.0,0.00019451,2]
[377934625,1754615444535,-400.0,0.00019451,2]
[377934627,1754615444547,-400.0,0.00019451,2]
[377934629,1754615444558,-400.0,0.00019451,2]
[377934631,1754615444568,-400.0,0.00019451,2]
[377934633,1754615444579,-400.0,0.00019451,2]
[377934634,1754615444593,-400.0,0.00019451,2]
[377934636,1754615444605,-400.0,0.00019451,2]
[377934638,1754615444615,-400.0,0.00019451,2]
[377934640,1754615444627,-400.0,0.00019451,2]
[377934642,1754615444638,-400.0,0.00019451,2]
[377934644,1754615444649,-400.0,0.00019451,2]
[377934646,1754615444667,-400.0,0.00019451,2]
[377934648,1754615444678,-400.0,0.00019451,2]
[377934650,1754615444696,-400.0,0.00019451,2]
[377934652,1754615444708,-402.41376925,0.00019451,2]
[377934655,1754615444726,-400.0,0.00019451,2]
[377934657,1754615444738,-403.03774106,0.00019451,2]
[377934659,1754615444749,-400.0,0.00019451,2]
[377934661,1754615444760,-400.0,0.00019451,2]
[377934663,1754615444772,-400.0,0.00019451,2]
[377934665,1754615444783,-400.0,0.00019451,2]
[377934667,1754615444799,-400.0,0.00019451,2]
[377934669,1754615444811,-400.0,0.00019451,2]
[377934671,1754615444822,-400.0,0.00019451,2]
[377934673,1754615444836,-400.0,0.00019451,2]
[377934675,1754615444847,-400.0,0.00019451,2]
[377934677,1754615444858,-400.0,0.00019451,2]
[377934679,1754615444868,-401.16573224,0.00019451,2]
[377934681,1754615444879,-400.0,0.00019451,2]
[377934683,1754615444890,-400.0,0.00019451,2]
[377934685,1754615445111,-400.0,0.00019451,2]
[377934686,1754615445122,-545.57135857,0.00019451,2]
[377934688,1754615445133,-400.0,0.00019451,2]
[377934690,1754615445144,-400.0,0.00019451,2]
[377934692,1754615445157,-400.0,0.00019451,2]
[377934694,1754615445169,-400.0,0.00019451,2]
[377934696,1754615445180,-400.0,0.00019451,2]
[377934698,1754615445191,-400.0,0.00019451,2]
[377934700,1754615445202,-400.0,0.00019451,2]
[377934702,1754615445216,-400.0,0.00019451,2]
[377934705,1754615445228,-400.0,0.00019451,2]
[377934707,1754615445240,-400.0,0.00019451,2]
[377934709,1754615445251,-400.0,0.00019451,2]
[377934710,1754615445261,-400.0,0.00019451,2]
[377934712,1754615445273,-400.0,0.00019451,2]
[377934714,1754615445284,-400.0,0.00019451,2]
[377934716,1754615445295,-400.0,0.00019451,2]
[377934718,1754615445306,-400.0,0.00019451,2]
[377934720,1754615445319,-400.0,0.00019451,2]
[377934722,1754615445331,-400.0,0.00019451,2]
[377934725,1754615445342,-400.0,0.00019451,2]
[377934727,1754615445355,-500.0,0.00019451,2]
[377934729,1754615445366,-400.0,0.00019451,2]
[377934731,1754615445377,-400.0,0.00019451,2]
[377934733,1754615445389,-400.0,0.00019451,2]
[377934735,1754615445399,-400.0,0.00019451,2]
[377934737,1754615445417,-400.0,0.00019451,2]
[377934739,1754615445430,-400.0,0.00019451,2]
[377934741,1754615445441,-400.0,0.00019451,2]
[377934743,1754615445452,-400.0,0.00019451,2]
[377934745,1754615445463,-400.0,0.00019451,2]
[377934747,1754615445474,-400.0,0.00019451,2]
[377934749,1754615445485,-481.36,0.00019451,2]
[377934751,1754615445496,-400.0,0.00019451,2]
[377934753,1754615445509,-400.0,0.00019451,2]
[377934755,1754615445520,-407.71856906,0.00019451,2]
[377934757,1754615445531,-400.0,0.00019451,2]
[377934759,1754615445543,-400.0,0.00019451,2]
[377934761,1754615445556,-400.0,0.00019451,2]
[377934763,1754615445567,-500.0,0.00019451,2]
[377934765,1754615445578,-400.38609662,0.00019451,2]
[377934767,1754615445591,-502.73,0.00019451,2]
[377934769,1754615445604,-400.0,0.00019451,2]
[377934771,1754615445614,-400.0,0.00019451,2]
[377934773,1754615445625,-400.0,0.00019451,2]
[377934775,1754615445635,-400.0,0.00019451,2]
[377934777,1754615445646,-402.75428185,0.00019451,2]
[377934778,1754615445662,-400.0,0.00019451,2]
[377934780,1754615445673,-400.0,0.00019451,2]
[377934782,1754615445685,-400.0,0.00019451,2]
[377934784,1754615445696,-400.0,0.00019451,2]
[377934786,1754615445707,-400.0,0.00019451,2]
[377934787,1754615445718,-400.0,0.00019451,2]
[377934788,1754615445729,-400.0,0.00019451,2]
[377934789,1754615445740,-400.0,0.00019451,2]
[377934790,1754615445751,-400.0,0.00019451,2]
[377934791,1754615445761,-579.75,0.00019451,2]